bitfinex-derivatives/quotes_BTCF0:USTF0_20250814
["timestamp","ask_amount","ask_price","bid_price","bid_amount"]
[1755178611475,0.2869328,118630.0,118620.0,1.06455]
[1755178611874,0.3364828,118630.0,118620.0,0.98028]
[1755178612082,0.3356828,118630.0,118620.0,1.06455]
[1755178612474,0.6964828,118630.0,118620.0,1.06455]
[1755178612674,0.6964828,118630.0,118620.0,0.98028]
[1755178612980,0.6964828,118630.0,118620.0,1.06755]
[1755178613377,1.10644904,118630.0,118620.0,0.003]
[1755178613583,1.10644904,118630.0,118620.0,0.004]
[1755178613584,1.47504904,118630.0,118620.0,0.004]
[1755178613878,0.3272499,118620.0,118610.0,0.98016]
[1755178614072,0.3264641,118600.0,118590.0,0.1856551]
[1755178614273,0.04764,118600.0,118590.0,1.5264151]
[1755178614472,0.1319244,118600.0,118590.0,1.5264151]
[1755178614672,0.24218,118620.0,118600.0,0.2528433]
[1755178614888,0.2543402,118620.0,118610.0,1.0641173]
[1755178615072,0.04764,118620.0,118610.0,1.4249173]
[1755178615273,0.4473225,118640.0,118630.0,0.0842631]
[1755178615477,0.4106998,118640.0,118630.0,1.0640631]
[1755178615680,0.17007,118640.0,118630.0,1.0640631]
[1755178615875,0.17007,118640.0,118630.0,1.4248631]
[1755178616071,0.6557254,118650.0,118630.0,1.4248631]
[1755178616072,0.12642,118650.0,118630.0,1.5973851]
[1755178616276,0.17406,118650.0,118640.0,0.445056]
[1755178616487,0.12642,118650.0,118640.0,0.85902224]
[1755178616782,0.05899,118650.0,118640.0,0.85902224]
[1755178616978,0.0324099,118650.0,118640.0,1.02759024]
[1755178617170,0.06680256,118680.0,118670.0,0.0842347]
[1755178617374,0.06680256,118680.0,118670.0,1.4246747]
[1755178617783,0.15103016,118680.0,118670.0,1.4246747]
[1755178618177,0.15103016,118680.0,118670.0,1.4236747]
[1755178618582,0.06680256,118680.0,118670.0,1.4236747]
[1755178618984,0.15403016,118680.0,118670.0,1.4236747]
[1755178619388,0.34857016,118680.0,118670.0,1.0628747]
[1755178619584,1.1675749,118680.0,118670.0,1.0635547]
[1755178619772,0.35157016,118680.0,118670.0,1.0635547]
[1755178620079,0.15703016,118680.0,118670.0,1.0635547]
[1755178620489,0.27946016,118680.0,118670.0,1.0635547]
[1755178620681,0.1318747,118670.0,118660.0,0.1684747]
[1755178620881,0.04764,118670.0,118660.0,1.1476347]
[1755178621195,0.04764,118670.0,118660.0,1.5084347]
[1755178621378,0.1318747,118670.0,118660.0,1.5084347]
[1755178621573,0.1318747,118670.0,118660.0,1.4242018]
[1755178621887,0.04764,118670.0,118660.0,1.4242018]
[1755178622386,0.3264147,118670.0,118660.0,1.4242018]
[1755178622586,0.73558094,118670.0,118660.0,1.0634018]
[1755178622788,0.17007,118670.0,118660.0,1.4242018]
[1755178623091,0.04764,118670.0,118660.0,1.4242018]
[1755178623278,0.1338747,118670.0,118660.0,1.4242018]
[1755178623788,0.002,118670.0,118660.0,1.83336804]
[1755178623977,0.002,118670.0,118660.0,1.4242018]
[1755178624288,0.1338747,118670.0,118660.0,1.4242018]
[1755178624486,0.3284147,118670.0,118660.0,1.4237618]
[1755178624892,0.1338746,118670.0,118660.0,1.4237618]
[1755178625592,0.04964,118670.0,118660.0,1.4237618]
[1755178626286,0.1338746,118670.0,118660.0,1.4237618]
[1755178626586,0.04964,118670.0,118660.0,1.4237618]
[1755178626773,0.04964,118670.0,118660.0,0.4450417]
[1755178627083,0.0842488,118650.0,118640.0,0.4450556]
[1755178627279,0.0842488,118650.0,118640.0,1.5077496]
[1755178627280,0.2543188,118650.0,118640.0,1.5077496]
[1755178627482,0.6872288,118650.0,118640.0,0.97844]
[1755178627679,0.326436,118640.0,118630.0,0.4450631]
[1755178627882,0.326436,118640.0,118630.0,1.0626631]
[1755178628276,0.326436,118640.0,118630.0,0.9784]
[1755178628477,1.09720224,118640.0,118630.0,0.9784]
[1755178628685,0.0842631,118630.0,118620.0,1.24834143]
[1755178628884,0.6872431,118630.0,118620.0,1.24834143]
[1755178629084,0.3264431,118630.0,118620.0,1.24834143]
[1755178629283,0.24218,118630.0,118620.0,1.60914143]
[1755178629487,0.0842544,118650.0,118640.0,0.0842559]
[1755178629488,0.4949456,118650.0,118640.0,0.0842559]
[1755178629687,0.4949456,118650.0,118630.0,0.252777]
[1755178629688,0.1318959,118640.0,118630.0,0.084257]
[1755178629886,0.1318959,118640.0,118620.0,0.63081913]
[1755178629887,0.131903,118630.0,118620.0,0.35428843]
[1755178630091,0.2527579,118650.0,118620.0,1.44252163]
[1755178630290,0.4228279,118650.0,118640.0,0.0842559]
[1755178630492,0.1318888,118650.0,118640.0,1.0624959]
[1755178630786,0.1318888,118650.0,118640.0,1.4232959]
[1755178631180,0.04764,118650.0,118640.0,1.4232959]
[1755178631581,0.1318888,118650.0,118640.0,1.4232959]
[1755178631781,0.1318959,118640.0,118630.0,0.6978384]
[1755178631993,0.1318959,118640.0,118630.0,1.6759184]
[1755178632192,0.04764,118640.0,118630.0,1.6759184]
[1755178632394,0.1318959,118640.0,118630.0,1.6759184]
[1755178632782,0.3248462,118660.0,118650.0,0.0842488]
[1755178632986,0.3248462,118660.0,118650.0,1.4231288]
[1755178632987,0.2161277,118660.0,118650.0,1.4231288]
[1755178633196,0.1318817,118660.0,118650.0,1.4231288]
[1755178633391,0.1318817,118660.0,118650.0,1.0623288]
[1755178633590,0.3264217,118660.0,118650.0,1.0623288]
[1755178633793,0.6872217,118660.0,118650.0,1.0623288]
[1755178634195,0.3264217,118660.0,118650.0,1.0623288]
[1755178634396,0.04764,118660.0,118650.0,1.0623288]
[1755178634694,0.1318746,118670.0,118660.0,0.2527147]
[1755178635000,0.04764,118670.0,118660.0,0.6135147]
[1755178635198,0.01916256,118680.0,118670.0,0.0842346]
[1755178635397,0.15103006,118680.0,118670.0,1.0610746]
[1755178635799,0.15103006,118680.0,118670.0,0.97784]
[1755178636005,0.7547363,118680.0,118670.0,0.97784]
[1755178636300,0.7547363,118680.0,118670.0,0.97584]
[1755178636301,1.1163363,118680.0,118670.0,0.97584]
[1755178636504,0.1318817,118660.0,118650.0,0.2527438]
[1755178636686,0.1318817,118660.0,118650.0,1.2304638]
[1755178637292,0.04764,118650.0,118640.0,1.7788877]
[1755178637599,0.1318959,118640.0,118630.0,0.613575]
[1755178637802,0.1318959,118640.0,118630.0,1.4226965]
[1755178638098,0.3264359,118640.0,118630.0,1.422703]
[1755178638401,0.3264359,118640.0,118630.0,1.061903]
[1755178638794,0.1318959,118640.0,118630.0,1.061903]
[1755178639000,0.3264359,118640.0,118630.0,1.061903]
[1755178639299,0.3264359,118640.0,118630.0,0.97764]
[1755178639499,1.09640214,118640.0,118630.0,0.98064]
[1755178640001,1.46578614,118640.0,118630.0,0.003]
[1755178640299,1.0770185,118640.0,118630.0,0.003]
[1755178640498,1.46498614,118640.0,118630.0,0.005]
[1755178641095,1.46578614,118640.0,118630.0,0.005]
[1755178641401,1.46498614,118640.0,118630.0,0.004]
[1755178641594,1.48537802,118640.0,118630.0,0.004]
[1755178641902,1.48617802,118640.0,118630.0,0.002]
[1755178642105,1.07621178,118640.0,118630.0,0.002]
[1755178642401,1.48537802,118640.0,118630.0,0.002]
[1755178642704,0.3264501,118620.0,118610.0,0.9774]
[1755178642899,0.73561634,118620.0,118610.0,0.9774]
[1755178643109,0.3264572,118610.0,118600.0,0.6136468]
[1755178643288,0.04764,118610.0,118600.0,1.5909268]
[1755178643495,0.1319172,118610.0,118600.0,1.5909268]
[1755178644191,0.2543272,118610.0,118600.0,1.33808]
[1755178644394,0.33026832,118610.0,118600.0,1.4223643]
[1755178644702,0.3226872,118610.0,118600.0,1.4223643]
[1755178644897,0.1319172,118610.0,118600.0,1.4223643]
[1755178645098,0.2528223,118620.0,118600.0,1.5917284]
[1755178645304,0.1308101,118620.0,118610.0,0.4450772]
[1755178645496,0.04654,118640.0,118630.0,0.2527843]
[1755178645693,0.13860014,118650.0,118640.0,0.0842558]
[1755178645902,0.31817115,118660.0,118650.0,0.0842487]
[1755178646106,0.24150191,118660.0,118650.0,0.0842487]
[1755178646297,0.35633255,118660.0,118650.0,0.0842487]
[1755178646495,0.42469255,118660.0,118650.0,0.0842487]
[1755178646696,0.27208515,118660.0,118650.0,0.0842487]
[1755178647200,0.2531987,118650.0,118640.0,0.2527635]
[1755178647506,0.1307958,118640.0,118630.0,1.22994]
[1755178647799,0.04654,118650.0,118640.0,0.1685077]
[1755178648005,0.1307887,118650.0,118640.0,0.2527635]
[1755178648703,0.04654,118650.0,118640.0,0.6155635]
[1755178649005,0.1307886,118650.0,118640.0,0.6135635]
[1755178649208,0.1307886,118650.0,118640.0,0.5293077]
[1755178649704,0.11395,118670.0,118660.0,0.0842415]
[1755178649898,0.11395,118670.0,118660.0,2.19476774]
[1755178649899,0.06741,118670.0,118660.0,2.19476774]
[1755178650199,0.1516444,118670.0,118660.0,1.7848015]
[1755178650604,0.1516444,118670.0,118660.0,0.97696]
[1755178650605,0.7497544,118670.0,118660.0,0.97696]
[1755178650803,0.1307886,118650.0,118640.0,1.4219751]
[1755178651196,0.04654,118650.0,118640.0,1.4239751]
[1755178651399,0.3835215,118660.0,118650.0,0.0842486]
[1755178651708,0.1307887,118650.0,118640.0,1.33772]
[1755178651916,0.1307887,118650.0,118640.0,0.97692]
[1755178651917,0.3215587,118650.0,118640.0,0.97692]
[1755178652206,0.3215587,118650.0,118620.0,0.5313298]
[1755178652207,0.1308029,118630.0,118620.0,0.3608]
[1755178652407,0.3215729,118630.0,118620.0,0.08427]
[1755178652600,0.3215729,118630.0,118610.0,1.0611508]
[1755178652601,0.25322,118620.0,118610.0,1.0611508]
[1755178652803,0.13081,118620.0,118610.0,1.4219508]
[1755178653399,0.1307982,118640.0,118620.0,0.2528001]
[1755178653598,0.2993013,118650.0,118640.0,0.0842558]
[1755178653899,0.0842521,118650.0,118640.0,0.85622204]
[1755178654100,0.1432342,118660.0,118650.0,0.0842487]
[1755178654304,0.05899,118660.0,118650.0,1.4218887]
[1755178654603,0.05899,118660.0,118650.0,1.4238887]
[1755178655517,0.05899,118660.0,118650.0,1.83305494]
[1755178655710,0.05899,118660.0,118650.0,1.83385494]
[1755178655909,0.05699,118660.0,118650.0,1.84160113]
[1755178656304,0.05699,118660.0,118650.0,1.43243489]
[1755178656610,1e-07,118660.0,118650.0,2.20815312]
[1755178656916,1e-07,118670.0,118660.0,0.0842415]
[1755178657101,1e-07,118670.0,118660.0,0.4450415]
[1755178657406,0.0001,118680.0,118670.0,0.0842344]
[1755178657607,0.0001,118680.0,118670.0,0.4450344]
[1755178657906,0.0001,118680.0,118670.0,0.61356239]
[1755178658408,0.0001,118680.0,118670.0,0.85420064]
[1755178658602,0.0001,118680.0,118670.0,0.4450344]
[1755178658806,0.0843273,118680.0,118670.0,1.4606744]
[1755178659114,0.04664,118680.0,118670.0,1.47340992]
[1755178659423,0.6824373,118680.0,118670.0,1.03481552]
[1755178659713,0.3216373,118680.0,118670.0,1.12404992]
[1755178659915,0.6824373,118680.0,118670.0,1.03981552]
[1755178660103,1.09240354,118680.0,118670.0,0.03090515]
[1755178660304,1.46093154,118680.0,118670.0,0.03190515]
[1755178660503,1.46093154,118680.0,118650.0,0.01680635]
[1755178660504,0.3223515,118660.0,118650.0,1.03796635]
[1755178660705,1.09231774,118660.0,118650.0,1.03796635]
[1755178660909,1.26086974,118660.0,118650.0,1.03796635]
[1755178661218,0.490865,118650.0,118640.0,1.02096]
[1755178661402,1.26083124,118650.0,118640.0,1.02096]
[1755178661714,0.0842628,118630.0,118620.0,2.54756]
[1755178661904,0.6831728,118630.0,118620.0,2.18676]
[1755178662099,0.084277,118610.0,118600.0,0.6136423]
[1755178662305,0.130817,118610.0,118600.0,1.6344823]
[1755178663017,0.084277,118610.0,118600.0,1.6663923]
[1755178663518,0.2993613,118620.0,118610.0,0.0842764]
[1755178663809,0.0843719,118620.0,118610.0,0.4769864]
[1755178664915,0.0843719,118620.0,118610.0,0.4779864]
[1755178665304,0.1309119,118620.0,118610.0,0.1171864]
[1755178665503,0.1309119,118620.0,118610.0,0.4779864]
[1755178666111,0.1309119,118620.0,118610.0,0.1171864]
[1755178666310,0.2533219,118620.0,118610.0,0.002]
[1755178666617,0.3216819,118620.0,118610.0,0.002]
[1755178666818,0.3216819,118620.0,118610.0,0.0862776]
[1755178667116,0.2533219,118620.0,118610.0,0.0862776]
[1755178667315,0.1309119,118620.0,118610.0,0.0862776]
[1755178667613,0.2533219,118620.0,118610.0,0.0862776]
[1755178667801,0.3216819,118620.0,118610.0,0.0862776]
[1755178668116,0.3216819,118620.0,118610.0,0.002]
[1755178668504,0.73084814,118620.0,118610.0,0.002]
[1755178668910,0.73084814,118620.0,118610.0,0.0862776]
[1755178669110,0.3216819,118620.0,118610.0,0.0862776]
[1755178670021,0.3216819,118620.0,118610.0,0.002]
[1755178670213,0.3216819,118620.0,118610.0,0.0862775]
[1755178671420,0.1309119,118620.0,118610.0,0.4470775]
[1755178671621,0.2533219,118620.0,118610.0,0.4470775]
[1755178671809,0.3216819,118620.0,118610.0,0.002]
[1755178672014,0.73084814,118620.0,118610.0,0.002]
[1755178672514,0.3216819,118620.0,118610.0,0.09945194]
[1755178672916,0.3216819,118620.0,118610.0,0.46025194]
[1755178673312,0.2533219,118620.0,118610.0,0.46025194]
[1755178673519,0.1309119,118620.0,118610.0,0.46025194]
[1755178674116,0.2534019,118620.0,118610.0,0.46025194]
[1755178674423,0.3211519,118620.0,118610.0,0.46025194]
[1755178674621,0.3211519,118620.0,118610.0,0.01517444]
[1755178675021,0.6819519,118620.0,118610.0,0.01517444]
[1755178675318,1.09111814,118620.0,118610.0,0.01517444]
[1755178675520,0.2009917,118590.0,118580.0,0.6262765]
[1755178675714,0.30977857,118590.0,118580.0,1.12365169]
[1755178675919,0.30977857,118590.0,118580.0,1.01796198]
[1755178676221,0.31731405,118590.0,118580.0,1.10226078]
[1755178676719,0.67811405,118590.0,118580.0,0.01388198]
[1755178676932,1.08808029,118590.0,118580.0,0.09436997]
[1755178677124,0.67811405,118590.0,118580.0,0.01888198]
[1755178677815,0.67811405,118590.0,118580.0,0.009]
[1755178678616,1.08728029,118590.0,118580.0,0.009]
[1755178678812,0.68011405,118590.0,118580.0,0.004]
[1755178679016,0.68011405,118590.0,118570.0,0.0843059]
[1755178679017,0.3234888,118580.0,118570.0,0.0843059]
[1755178679217,0.3234888,118580.0,118570.0,0.09418903]
[1755178679416,0.3234888,118580.0,118570.0,0.45498903]
[1755178679618,0.6842888,118580.0,118570.0,0.00988313]
[1755178680224,0.6842888,118580.0,118570.0,0.09418903]
[1755178680422,0.0872932,118590.0,118580.0,0.0842988]
[1755178680622,0.002,118590.0,118580.0,1.90529817]
[1755178681130,0.5763232,118610.0,118600.0,0.0832845]
[1755178681428,0.5763232,118610.0,118600.0,1.4557645]
[1755178681727,0.9371232,118610.0,118600.0,1.01068]
[1755178681931,0.3234674,118610.0,118600.0,1.4557645]
[1755178682132,0.2557174,118610.0,118600.0,1.46564559]
[1755178682624,0.0842916,118590.0,118580.0,0.4470973]
[1755178682827,0.73264784,118590.0,118580.0,1.38232182]
[1755178683018,0.3234816,118590.0,118580.0,1.46662062]
[1755178683222,0.3234816,118590.0,118580.0,1.10582062]
[1755178683428,1.09344784,118590.0,118580.0,1.01152]
[1755178683615,1.09344784,118590.0,118580.0,0.002]
[1755178683928,0.3234888,118580.0,118570.0,1.0937059]
[1755178684130,0.6842888,118580.0,118570.0,0.00988323]
[1755178684627,1.09345504,118580.0,118570.0,0.00988323]
[1755178684825,0.3242958,118570.0,118560.0,0.01700672]
[1755178685122,0.3235172,118540.0,118530.0,1.15880414]
[1755178685326,1.07977638,118540.0,118530.0,0.15144414]
[1755178685527,0.3235243,118530.0,118520.0,1.17543414]
[1755178685724,0.12505892,118530.0,118520.0,1.62137554]
[1755178685925,0.07610892,118530.0,118520.0,1.65248554]
[1755178686225,0.07610892,118530.0,118520.0,1.5010414]
[1755178686424,0.15495324,118540.0,118520.0,1.65365]
[1755178686623,0.1686474,118550.0,118540.0,0.1110772]
[1755178686822,0.3372678,118560.0,118540.0,1.6799574]
[1755178687129,0.1686312,118560.0,118550.0,0.50378]
[1755178687331,0.2195667,118570.0,118560.0,0.1110629]
[1755178687530,0.2529082,118580.0,118560.0,2.06261084]
[1755178687722,0.0843023,118580.0,118570.0,0.5037658]
[1755178687917,0.1332523,118580.0,118570.0,0.4718558]
[1755178688227,0.0843129,118560.0,118550.0,0.02675]
[1755178688430,0.3235029,118560.0,118550.0,1.03511]
[1755178688617,0.6843029,118560.0,118550.0,0.001]
[1755178688818,1.26355611,118560.0,118550.0,0.001]
[1755178689325,0.6843029,118560.0,118550.0,0.001]
[1755178689724,0.75260889,118560.0,118550.0,0.001]
[1755178689923,0.75340889,118560.0,118550.0,0.001]
[1755178690120,0.3235242,118530.0,118520.0,1.46939558]
[1755178690426,0.3235242,118530.0,118520.0,0.37817798]
[1755178690620,0.6843242,118530.0,118520.0,0.10171888]
[1755178690827,1.26357741,118530.0,118520.0,0.01737798]
[1755178691122,0.6843242,118530.0,118520.0,0.10171888]
[1755178691426,0.0843482,118510.0,118500.0,0.62434794]
[1755178691626,0.23919,118510.0,118500.0,0.59659794]
[1755178691831,0.2557882,118510.0,118500.0,0.4729038]
[1755178692127,0.17144,118510.0,118500.0,0.4729038]
[1755178692332,0.04895,118510.0,118500.0,0.4729038]
[1755178692525,0.4922054,118530.0,118520.0,0.001]
[1755178692720,0.4078653,118530.0,118520.0,0.0853411]
[1755178692932,0.2176253,118530.0,118520.0,0.1130911]
[1755178693133,0.7686653,118530.0,118520.0,0.001]
[1755178693435,0.2557882,118510.0,118500.0,1.2846836]
[1755178693619,0.3235382,118510.0,118500.0,1.0922353]
[1755178693824,0.6843382,118510.0,118500.0,1.0922353]
[1755178694030,0.3235382,118510.0,118500.0,1.1199853]
[1755178694230,0.2557882,118510.0,118500.0,1.1159853]
[1755178694732,0.7599876,118520.0,118510.0,0.1120982]
[1755178694927,0.5531523,118520.0,118510.0,0.1120982]
[1755178695127,0.05906,118520.0,118510.0,0.5048082]
[1755178695330,0.05906,118520.0,118510.0,1.08406141]
[1755178695625,0.04535231,118520.0,118510.0,1.08486141]
[1755178695828,0.04535231,118520.0,118510.0,0.5048082]
[1755178696721,0.04535231,118520.0,118510.0,0.5078082]
[1755178697130,0.04535231,118520.0,118510.0,0.5106082]
[1755178697331,0.04895,118540.0,118530.0,0.0843339]
[1755178697525,0.04895,118540.0,118530.0,1.8198339]
[1755178697721,0.4078327,118550.0,118540.0,0.2529667]
[1755178698026,0.04895,118550.0,118540.0,0.6137667]
[1755178698336,0.3234955,118570.0,118560.0,0.0843125]
[1755178698833,0.3234955,118570.0,118560.0,0.4451125]
[1755178699232,0.6842955,118570.0,118560.0,0.0843125]
[1755178699441,0.3235097,118550.0,118540.0,1.2526575]
[1755178699634,0.3235097,118550.0,118540.0,1.6134575]
[1755178699834,0.3235097,118550.0,118540.0,1.36248]
[1755178700035,0.3235097,118550.0,118540.0,1.00168]
[1755178700229,0.6843097,118550.0,118540.0,0.004]
[1755178700625,0.6843097,118550.0,118530.0,1.6107571]
[1755178700626,0.1332767,118540.0,118530.0,1.6107571]
[1755178701029,0.1332767,118540.0,118530.0,1.4420915]
[1755178701243,0.3235167,118540.0,118530.0,1.4420915]
[1755178701741,0.1332767,118540.0,118530.0,1.4420915]
[1755178701925,0.0843267,118540.0,118530.0,1.4563915]
[1755178702130,0.2539693,118550.0,118540.0,0.0986267]
[1755178702331,0.3029193,118550.0,118540.0,0.4451267]
[1755178702536,0.0843267,118540.0,118530.0,0.5314572]
[1755178702838,0.3235167,118540.0,118530.0,1.359]
[1755178703033,0.3235167,118540.0,118530.0,1.0002]
[1755178703530,0.3235167,118540.0,118530.0,1.0845339]
[1755178703736,0.1332767,118540.0,118530.0,1.4433339]
[1755178703938,0.1332767,118540.0,118530.0,1.4606339]
[1755178704239,0.2562767,118540.0,118530.0,1.4463339]
[1755178704438,0.3287667,118540.0,118530.0,0.3628]
[1755178704634,0.3287667,118540.0,118530.0,0.9982]
[1755178704833,0.04614,118540.0,118530.0,1.6119979]
[1755178705038,0.1304667,118540.0,118530.0,1.6119979]
[1755178705235,0.1304667,118540.0,118530.0,1.527664]
[1755178705732,0.1979397,118550.0,118540.0,0.0843267]
[1755178705932,0.3209397,118550.0,118540.0,0.3608]
[1755178706130,0.06748,118550.0,118540.0,0.4451267]
[1755178706334,0.06748,118550.0,118540.0,0.4594267]
[1755178706734,0.11362,118550.0,118540.0,0.4594267]
[1755178707039,0.06748,118550.0,118540.0,0.4594267]
[1755178707344,0.06848,118550.0,118540.0,0.4594267]
[1755178707845,0.1979396,118550.0,118540.0,0.4594267]
[1755178708141,0.06748,118550.0,118540.0,0.4644267]
[1755178708733,0.05904,118560.0,118540.0,1.36754101]
[1755178708942,0.05904,118560.0,118550.0,1.4537196]
[1755178709142,0.57498383,118610.0,118600.0,0.084284]
[1755178709143,0.14911073,118610.0,118600.0,0.084284]
[1755178709333,0.16952248,118610.0,118600.0,1.453084]
[1755178709639,0.14911073,118610.0,118600.0,1.008]
[1755178709846,0.34460073,118610.0,118600.0,1.008]
[1755178710036,0.1304311,118590.0,118580.0,0.6979807]
[1755178710232,0.0842911,118590.0,118580.0,1.7051007]
[1755178710730,0.15084285,118590.0,118580.0,0.6136847]
[1755178710934,0.0843053,118570.0,118560.0,0.6137255]
[1755178711232,0.3259353,118570.0,118560.0,1.00648]
[1755178711437,0.6875353,118570.0,118560.0,1.00648]
[1755178711642,0.3267424,118560.0,118550.0,0.01683172]
[1755178711833,0.70715415,118560.0,118550.0,1.10879122]
[1755178712745,0.34635415,118560.0,118550.0,1.10879122]
[1755178713244,1.29512478,118560.0,118550.0,0.01683172]
[1755178713440,1.28640736,118560.0,118550.0,0.01683172]
[1755178714041,1.31209153,118560.0,118550.0,0.01683172]
[1755178714437,1.31529153,118560.0,118550.0,0.01683172]
[1755178714747,0.74389215,118560.0,118550.0,0.10115122]
[1755178715148,0.73703832,118560.0,118550.0,0.10115122]
[1755178715345,0.73803832,118560.0,118550.0,0.10115122]
[1755178715538,0.37723832,118560.0,118550.0,0.10115122]
[1755178715736,0.37723832,118560.0,118550.0,0.01683172]
[1755178715938,0.73803832,118560.0,118550.0,0.10115122]
[1755178716244,0.30472833,118560.0,118550.0,0.10115122]
[1755178716445,0.27986415,118560.0,118550.0,0.46195122]
[1755178716749,0.27986415,118560.0,118550.0,0.10115122]
[1755178717047,0.3317424,118560.0,118550.0,0.01683172]
[1755178717242,1.31706196,118560.0,118550.0,0.01683172]
[1755178717444,0.1304737,118530.0,118520.0,1.6153749]
[1755178717639,0.0851408,118520.0,118510.0,0.18595121]
[1755178717843,0.92643576,118520.0,118510.0,0.01725621]
[1755178718050,0.70798255,118520.0,118510.0,0.01725621]
[1755178718248,1.28723576,118520.0,118490.0,0.01702754]
[1755178718443,1.26603831,118500.0,118490.0,0.01702754]
[1755178718746,0.70719685,118500.0,118490.0,0.10138974]
[1755178718953,1.28645006,118500.0,118490.0,0.10138974]
[1755178719151,1.28645006,118500.0,118490.0,0.01702754]
[1755178719349,0.1305164,118470.0,118460.0,0.6139471]
[1755178719650,0.2535235,118460.0,118440.0,0.5295916]
[1755178719855,0.1305378,118440.0,118430.0,0.0001]
[1755178720045,0.1305378,118440.0,118400.0,1.51692441]
[1755178720046,0.1305592,118410.0,118400.0,0.01692441]
[1755178720249,1.28102466,118410.0,118400.0,0.01692441]
[1755178720744,0.0844375,118390.0,118380.0,0.0844382]
[1755178720950,0.6407275,118390.0,118380.0,0.0844382]
[1755178721144,0.6407233,118390.0,118380.0,0.0844382]
[1755178721340,0.2535808,118380.0,118370.0,1.5288451]
[1755178721542,0.04614,118380.0,118370.0,1.5288451]
[1755178721739,1.35054811,118400.0,118390.0,0.0844337]
[1755178721952,0.16914,118400.0,118390.0,0.0844337]
[1755178722142,0.6143666,118400.0,118390.0,1.0875137]
[1755178722346,0.3260637,118390.0,118380.0,0.445235]
[1755178722551,0.0844408,118380.0,118370.0,1.6179744]
[1755178722857,0.27499255,118380.0,118370.0,1.6229744]
[1755178723043,0.04714,118380.0,118370.0,1.6229744]
[1755178723346,0.34748255,118380.0,118370.0,1.2621744]
[1755178723548,1.26712401,118380.0,118370.0,0.089528]
[1755178723849,0.84229496,118380.0,118370.0,0.089528]
[1755178724152,0.84229496,118380.0,118370.0,0.098528]
[1755178724153,0.26404175,118380.0,118370.0,0.098528]
[1755178724747,0.26304175,118380.0,118370.0,0.093528]
[1755178725652,0.04714,118380.0,118370.0,0.093528]
[1755178725952,0.04714,118380.0,118370.0,0.094528]
[1755178726142,0.04614,118380.0,118370.0,0.446328]
[1755178726348,0.04714,118380.0,118370.0,0.093528]
[1755178726546,0.001,118380.0,118370.0,0.455128]
[1755178726845,0.04614,118400.0,118390.0,0.0844337]
[1755178727052,0.04614,118400.0,118390.0,1.4445937]
[1755178727244,0.04614,118400.0,118390.0,1.0837937]
[1755178727452,0.34646715,118400.0,118390.0,1.0837937]
[1755178727760,0.24163,118400.0,118390.0,1.0837937]
[1755178727952,0.2535731,118390.0,118380.0,0.2533115]
[1755178728252,1.28652806,118390.0,118380.0,0.1688717]
[1755178728445,0.3260702,118380.0,118370.0,0.6142148]
[1755178728648,0.3260702,118380.0,118370.0,8e-05]
[1755178728649,0.6868702,118380.0,118370.0,8e-05]
[1755178728852,0.70808195,118380.0,118370.0,8e-05]
[1755178729163,0.1306088,118340.0,118330.0,0.7155925]
[1755178729468,0.90535201,118340.0,118330.0,0.0168945]
[1755178730356,0.34651055,118340.0,118330.0,0.1013704]
[1755178730663,0.92576376,118340.0,118330.0,0.1013704]
[1755178730846,0.92676376,118340.0,118330.0,0.1093704]
[1755178731049,0.92676376,118340.0,118330.0,0.1123704]
[1755178732056,0.92676376,118340.0,118330.0,0.0278945]
[1755178732460,0.3270988,118340.0,118330.0,0.1123704]
[1755178732754,0.34751055,118340.0,118330.0,0.1123704]
[1755178733262,0.92676376,118340.0,118330.0,0.0278945]
[1755178733453,0.92676376,118340.0,118330.0,0.1123704]
[1755178733859,0.90635201,118340.0,118330.0,0.1123704]
[1755178734060,0.2546088,118340.0,118330.0,0.1123704]
[1755178734560,0.04714,118340.0,118330.0,0.1123704]
[1755178734761,0.04714,118340.0,118330.0,0.4731704]
[1755178734967,0.001,118340.0,118330.0,0.4731704]
[1755178735154,0.1322187,118340.0,118330.0,0.4731704]
[1755178735457,0.04775,118340.0,118330.0,0.4731704]
[1755178735656,0.1322187,118340.0,118330.0,0.4731704]
[1755178735864,0.2535787,118340.0,118330.0,0.4731704]
[1755178736061,0.04675,118370.0,118330.0,1.33775571]
[1755178736258,0.12136,118380.0,118360.0,0.6149591]
[1755178736465,0.1311902,118380.0,118370.0,1.0723273]
[1755178736661,0.0844473,118370.0,118360.0,0.6141591]
[1755178736968,0.0844542,118360.0,118350.0,1.6016179]
[1755178737260,0.82126321,118360.0,118350.0,1.0718973]
[1755178737455,0.90571741,118360.0,118350.0,0.98744]
[1755178737761,0.92612916,118360.0,118350.0,1.0719014]
[1755178737962,0.92612916,118360.0,118350.0,1.4327014]
[1755178738152,0.3264713,118350.0,118340.0,1.4313478]
[1755178738359,0.34688305,118350.0,118340.0,1.4313478]
[1755178738558,0.3264713,118350.0,118340.0,1.4313478]
[1755178739054,0.27298305,118350.0,118340.0,1.4313478]
[1755178739259,0.34688305,118350.0,118340.0,1.34688]
[1755178739560,0.0844685,118340.0,118330.0,0.3776945]
[1755178739757,0.04675,118340.0,118330.0,1.4475301]
[1755178739959,0.1689287,118350.0,118330.0,1.6164769]
[1755178740258,0.1689287,118350.0,118340.0,0.003]
[1755178740259,0.3370387,118350.0,118340.0,0.003]
[1755178740454,0.7725387,118350.0,118340.0,0.003]
[1755178740655,0.79295045,118350.0,118340.0,0.003]
[1755178740962,0.3264785,118340.0,118330.0,1.0080945]
[1755178741161,0.90573171,118340.0,118330.0,0.005]
[1755178741550,0.2525785,118340.0,118330.0,0.001]
[1755178741752,0.34689025,118340.0,118330.0,0.001]
[1755178741955,0.34689025,118340.0,118330.0,0.0854756]
[1755178742263,0.34689025,118340.0,118330.0,0.001]
[1755178742462,0.34689025,118340.0,118330.0,0.0854756]
[1755178742655,0.34689025,118340.0,118330.0,0.001]
[1755178743063,0.0844755,118330.0,118320.0,0.9854]
[1755178743268,0.92615046,118330.0,118320.0,0.9854]
[1755178743453,0.92615046,118330.0,118320.0,1.0698827]
[1755178743659,0.15163725,118330.0,118320.0,1.4306827]
[1755178744261,0.02041175,118330.0,118320.0,1.4314827]
[1755178744489,0.02041175,118330.0,118320.0,1.4354827]
[1755178744680,0.15163735,118330.0,118320.0,1.4346827]
[1755178744962,0.15163735,118330.0,118320.0,1.4398027]
[1755178745161,0.06716175,118330.0,118320.0,1.4398027]
[1755178745562,0.02041175,118330.0,118320.0,1.4406027]
[1755178745758,0.02041175,118330.0,118320.0,1.6096267]
[1755178746067,0.02041175,118330.0,118320.0,1.4398027]
[1755178746362,0.15163725,118330.0,118320.0,1.4398027]
[1755178746565,0.92615046,118330.0,118320.0,1.4390027]
[1755178746962,0.92615046,118330.0,118320.0,1.4388827]
[1755178747362,0.02041175,118330.0,118320.0,1.4388827]